[Event "December 12 Early 2023"]
[Site "https://www.chess.com"]
[Date "2023.12.12"]
[Round "8"]
[White "Zeneli, Klendi"]
[Black "Klukin, Kirill"]
[Result "1-0"]
[Board "36"]
[TimeControl "180+1"]
[WhiteFideId "4706609"]
[BlackFideId "24199273"]
[WhiteElo "2393"]
[BlackElo "2810"]
[WhiteTeam "ALB"]
[BlackTeam "RUS"]
[WhiteClock "0:00:33"]
[BlackClock "0:00:00"]

1. e4 {[%clk 0:02:59]}  c5 {[%clk 0:02:59]} 2. c3 {[%clk 0:02:59]}  g6 {[%clk 0:02:58]} 3. d4 {[%clk 0:02:58]}  cxd4 {[%clk 0:02:59]} 4. cxd4 {[%clk 0:02:59]}  d5 {[%clk 0:03:00]} 5. e5 {[%clk 0:02:58]}  Bg7 {[%clk 0:03:00]} 6. Nf3 {[%clk 0:02:56]}  a6 {[%clk 0:03:00]} 7. Be2 {[%clk 0:02:56]}  Nc6 {[%clk 0:03:01]} 8. h3 {[%clk 0:02:55]}  f6 {[%clk 0:03:01]} 9. exf6 {[%clk 0:02:52]}  Nxf6 {[%clk 0:03:02]} 10. O-O {[%clk 0:02:52]}  O-O {[%clk 0:03:03]} 11. Nc3 {[%clk 0:02:50]}  Nh5 {[%clk 0:03:03]} 12. Ne5 {[%clk 0:02:48]}  Nf4 {[%clk 0:03:00]} 13. Bf3 {[%clk 0:02:45]}  Nxe5 {[%clk 0:02:31]} 14. dxe5 {[%clk 0:02:46]}  e6 {[%clk 0:02:27]} 15. Re1 {[%clk 0:02:42]}  Qe7 {[%clk 0:01:58]} 16. Ne2 {[%clk 0:02:37]}  Nxe2+ {[%clk 0:01:57]} 17. Qxe2 {[%clk 0:02:36]}  Bd7 {[%clk 0:01:57]} 18. a4 {[%clk 0:02:29]}  Rf5 {[%clk 0:01:53]} 19. b3 {[%clk 0:02:28]}  Bc6 {[%clk 0:01:38]} 20. Ba3 {[%clk 0:02:26]}  Qf7 {[%clk 0:01:32]} 21. Bd6 {[%clk 0:02:23]}  Bh6 {[%clk 0:00:55]} 22. Ra2 {[%clk 0:02:12]}  Rc8 {[%clk 0:00:37]} 23. Rc2 {[%clk 0:02:08]}  Qd7 {[%clk 0:00:37]} 24. Bg4 {[%clk 0:01:36]}  Rf7 {[%clk 0:00:34]} 25. h4 {[%clk 0:01:36]}  Bf8 {[%clk 0:00:28]} 26. Bxf8 {[%clk 0:01:33]}  Rcxf8 {[%clk 0:00:28]} 27. h5 {[%clk 0:01:34]}  Qe7 {[%clk 0:00:25]} 28. Qe3 {[%clk 0:01:27]}  Rf4 {[%clk 0:00:16]} 29. Bh3 {[%clk 0:01:19]}  gxh5 {[%clk 0:00:12]} 30. Rd2 {[%clk 0:01:04]}  Kh8 {[%clk 0:00:06]} 31. Rf1 {[%clk 0:01:02]}  h4 {[%clk 0:00:03]} 32. Rd4 {[%clk 0:01:02]}  Rxd4 {[%clk 0:00:04]} 33. Qxd4 {[%clk 0:01:03]}  h6 {[%clk 0:00:02]} 34. Qg4 {[%clk 0:01:02]}  Bd7 {[%clk 0:00:02]} 35. Qh5 {[%clk 0:00:59]}  Qg5 {[%clk 0:00:02]} 36. Qe2 {[%clk 0:00:53]}  Rf4 {[%clk 0:00:01]} 37. Rd1 {[%clk 0:00:48]}  Bc6 {[%clk 0:00:02]} 38. Bxe6 {[%clk 0:00:43]}  Re4 {[%clk 0:00:02]} 39. Qf3 {[%clk 0:00:39]}  Rf4 {[%clk 0:00:03]} 40. Qe2 {[%clk 0:00:36]}  Re4 {[%clk 0:00:03]} 41. Qd2 {[%clk 0:00:36]}  Rxe5 {[%clk 0:00:02]} 42. Bh3 {[%clk 0:00:33]}  Qxd2 {[%clk 0:00:00]} 43. Rxd2 {[%clk 0:00:33]}  Kg7 {[%clk 0:00:00]} 44. Rd4 {[%clk 0:00:33]} 1-0

[Event "December 12 Early 2023"]
[Site "https://www.chess.com"]
[Date "2023.12.12"]
[Round "8"]
[White "Baskakov, Egor"]
[Black "Shevchuk, Olexandr"]
[Result "1-0"]
[Board "37"]
[TimeControl "180+1"]
[WhiteFideId "24197866"]
[BlackFideId "14113775"]
[WhiteElo "2887"]
[BlackElo "2497"]
[WhiteTeam "RUS"]
[BlackTeam "UKR"]
[WhiteClock "0:01:21"]
[BlackClock "0:01:01"]

1. e4 {[%clk 0:03:00]}  c5 {[%clk 0:03:00]} 2. Nf3 {[%clk 0:03:01]}  e6 {[%clk 0:03:00]} 3. Be2 {[%clk 0:03:01]}  Nc6 {[%clk 0:03:00]} 4. c4 {[%clk 0:03:01]}  Nd4 {[%clk 0:02:56]} 5. Nxd4 {[%clk 0:03:00]}  cxd4 {[%clk 0:02:57]} 6. O-O {[%clk 0:02:58]}  Ne7 {[%clk 0:02:57]} 7. d3 {[%clk 0:02:58]}  Nc6 {[%clk 0:02:58]} 8. f4 {[%clk 0:02:58]}  d6 {[%clk 0:02:51]} 9. Nd2 {[%clk 0:02:57]}  g6 {[%clk 0:02:51]} 10. f5 {[%clk 0:02:44]}  Bg7 {[%clk 0:02:46]} 11. fxe6 {[%clk 0:02:39]}  fxe6 {[%clk 0:02:27]} 12. Bg4 {[%clk 0:02:37]}  Bd7 {[%clk 0:02:25]} 13. e5 {[%clk 0:02:30]}  Nxe5 {[%clk 0:02:21]} 14. Ne4 {[%clk 0:02:31]}  Qe7 {[%clk 0:02:21]} 15. Bg5 {[%clk 0:02:30]}  Qf8 {[%clk 0:01:50]} 16. Rxf8+ {[%clk 0:02:29]}  Kxf8 {[%clk 0:01:51]} 17. Nxd6 {[%clk 0:02:26]}  h6 {[%clk 0:01:51]} 18. Bf4 {[%clk 0:02:16]}  Kg8 {[%clk 0:01:46]} 19. Bxe5 {[%clk 0:02:13]}  Bxe5 {[%clk 0:01:46]} 20. Qe2 {[%clk 0:02:13]}  Bxd6 {[%clk 0:01:33]} 21. Bxe6+ {[%clk 0:02:14]}  Kg7 {[%clk 0:01:34]} 22. Bxd7 {[%clk 0:02:13]}  Rhf8 {[%clk 0:01:35]} 23. Rf1 {[%clk 0:02:12]}  Rxf1+ {[%clk 0:01:26]} 24. Kxf1 {[%clk 0:02:12]}  Rf8+ {[%clk 0:01:26]} 25. Kg1 {[%clk 0:02:13]}  Rf7 {[%clk 0:01:23]} 26. Qe6 {[%clk 0:02:04]}  Bf4 {[%clk 0:01:20]} 27. g3 {[%clk 0:02:01]}  Be3+ {[%clk 0:01:20]} 28. Kg2 {[%clk 0:02:02]}  h5 {[%clk 0:01:18]} 29. Qe5+ {[%clk 0:02:00]}  Kh6 {[%clk 0:01:13]} 30. Qh8+ {[%clk 0:01:56]}  Rh7 {[%clk 0:01:13]} 31. Qf8+ {[%clk 0:01:56]}  Rg7 {[%clk 0:01:13]} 32. Be6 {[%clk 0:01:48]}  Kh7 {[%clk 0:01:13]} 33. Kf3 {[%clk 0:01:48]}  Bh6 {[%clk 0:01:11]} 34. Ke4 {[%clk 0:01:48]}  a5 {[%clk 0:01:07]} 35. a3 {[%clk 0:01:47]}  b6 {[%clk 0:01:07]} 36. b4 {[%clk 0:01:47]}  axb4 {[%clk 0:01:08]} 37. axb4 {[%clk 0:01:47]}  h4 {[%clk 0:01:07]} 38. g4 {[%clk 0:01:47]}  Bg5 {[%clk 0:01:05]} 39. b5 {[%clk 0:01:43]}  Re7 {[%clk 0:01:04]} 40. Qg8+ {[%clk 0:01:40]}  Kh6 {[%clk 0:01:01]} 41. Qh8+ {[%clk 0:01:41]}  Rh7 {[%clk 0:01:01]} 42. Qf8+ {[%clk 0:01:41]}  Rg7 {[%clk 0:01:02]} 43. c5 {[%clk 0:01:32]}  Be7 {[%clk 0:01:00]} 44. Qh8+ {[%clk 0:01:26]}  Rh7 {[%clk 0:01:01]} 45. g5+ {[%clk 0:01:24]}  Bxg5 {[%clk 0:01:00]} 46. Qf8+ {[%clk 0:01:21]}  Rg7 {[%clk 0:01:01]} 1-0

[Event "December 12 Early 2023"]
[Site "https://www.chess.com"]
[Date "2023.12.12"]
[Round "8"]
[White "Koelle, Tobias"]
[Black "Gontcharov, Vladislav"]
[Result "0-1"]
[Board "40"]
[TimeControl "180+1"]
[WhiteFideId "16207378"]
[BlackFideId "4123492"]
[WhiteElo "2822"]
[BlackElo "2662"]
[WhiteTeam "GER"]
[BlackTeam "RUS"]
[WhiteClock "0:00:55"]
[BlackClock "0:00:13"]

1. b4 {[%clk 0:02:53]}  d5 {[%clk 0:02:56]} 2. Bb2 {[%clk 0:02:52]}  Qd6 {[%clk 0:02:56]} 3. a3 {[%clk 0:02:47]}  e5 {[%clk 0:02:55]} 4. d3 {[%clk 0:02:45]}  Nf6 {[%clk 0:02:52]} 5. Nd2 {[%clk 0:02:43]}  Be7 {[%clk 0:02:41]} 6. c4 {[%clk 0:02:35]}  c6 {[%clk 0:02:41]} 7. e3 {[%clk 0:02:20]}  O-O {[%clk 0:02:39]} 8. cxd5 {[%clk 0:02:19]}  cxd5 {[%clk 0:02:37]} 9. Ngf3 {[%clk 0:02:20]}  Nbd7 {[%clk 0:02:08]} 10. Be2 {[%clk 0:02:19]}  b6 {[%clk 0:02:05]} 11. O-O {[%clk 0:02:18]}  Bb7 {[%clk 0:02:05]} 12. Nh4 {[%clk 0:02:15]}  Qe6 {[%clk 0:02:03]} 13. Rc1 {[%clk 0:02:09]}  Rac8 {[%clk 0:02:02]} 14. Qa4 {[%clk 0:02:09]}  a6 {[%clk 0:02:00]} 15. h3 {[%clk 0:02:08]}  h6 {[%clk 0:01:45]} 16. Rfd1 {[%clk 0:01:56]}  Rfe8 {[%clk 0:01:33]} 17. Nhf3 {[%clk 0:01:49]}  g5 {[%clk 0:01:29]} 18. Nh2 {[%clk 0:01:46]}  h5 {[%clk 0:01:26]} 19. Nhf1 {[%clk 0:01:46]}  Qf5 {[%clk 0:01:17]} 20. Ng3 {[%clk 0:01:29]}  Qg6 {[%clk 0:01:13]} 21. Nxh5 {[%clk 0:01:29]}  b5 {[%clk 0:00:46]} 22. Nxf6+ {[%clk 0:01:23]}  Nxf6 {[%clk 0:00:47]} 23. Qb3 {[%clk 0:01:24]}  g4 {[%clk 0:00:47]} 24. hxg4 {[%clk 0:01:18]}  Nxg4 {[%clk 0:00:47]} 25. Bxg4 {[%clk 0:01:19]}  Qxg4 {[%clk 0:00:46]} 26. Bxe5 {[%clk 0:01:19]}  Bg5 {[%clk 0:00:38]} 27. d4 {[%clk 0:01:16]}  Rc4 {[%clk 0:00:34]} 28. Nf3 {[%clk 0:01:09]}  f6 {[%clk 0:00:26]} 29. Bg3 {[%clk 0:01:05]}  Bxe3 {[%clk 0:00:24]} 30. fxe3 {[%clk 0:00:59]}  Qxg3 {[%clk 0:00:24]} 31. Rb1 {[%clk 0:00:59]}  Rec8 {[%clk 0:00:21]} 32. Rb2 {[%clk 0:00:57]}  Rc3 {[%clk 0:00:20]} 33. Qa2 {[%clk 0:00:55]}  Rxe3 {[%clk 0:00:20]} 34. Rf2 {[%clk 0:00:55]}  Rcc3 {[%clk 0:00:19]} 35. Rdf1 {[%clk 0:00:55]}  Kg7 {[%clk 0:00:15]} 36. Qb1 {[%clk 0:00:54]}  Bc8 {[%clk 0:00:12]} 37. Nh2 {[%clk 0:00:52]}  Rc6 {[%clk 0:00:09]} 38. Rc1 {[%clk 0:00:47]}  Rce6 {[%clk 0:00:07]} 39. Nf1 {[%clk 0:00:46]}  Qxf2+ {[%clk 0:00:02]} 40. Kxf2 {[%clk 0:00:46]}  Re2+ {[%clk 0:00:02]} 41. Kg1 {[%clk 0:00:47]}  Bd7 {[%clk 0:00:02]} 42. Rc7 {[%clk 0:00:47]}  Re7 {[%clk 0:00:03]} 43. Qf5 {[%clk 0:00:47]}  Bxf5 {[%clk 0:00:03]} 44. Rc5 {[%clk 0:00:48]}  Be4 {[%clk 0:00:02]} 45. Kh2 {[%clk 0:00:41]}  Ra2 {[%clk 0:00:03]} 46. Ng3 {[%clk 0:00:41]}  Kf7 {[%clk 0:00:04]} 47. Nh5 {[%clk 0:00:41]}  Rd7 {[%clk 0:00:04]} 48. Rc6 {[%clk 0:00:41]}  f5 {[%clk 0:00:05]} 49. Nf4 {[%clk 0:00:40]}  Ke7 {[%clk 0:00:05]} 50. Ng6+ {[%clk 0:00:39]}  Kd8 {[%clk 0:00:05]} 51. Ne5 {[%clk 0:00:40]}  Rh7+ {[%clk 0:00:05]} 52. Kg3 {[%clk 0:00:40]}  Rg7+ {[%clk 0:00:06]} 53. Kf4 {[%clk 0:00:41]}  Rgxg2 {[%clk 0:00:07]} 54. Nf7+ {[%clk 0:00:40]}  Ke7 {[%clk 0:00:07]} 55. Rc7+ {[%clk 0:00:40]}  Ke6 {[%clk 0:00:04]} 56. Nd8+ {[%clk 0:00:39]}  Kd6 {[%clk 0:00:04]} 57. Rc6+ {[%clk 0:00:37]}  Kd7 {[%clk 0:00:04]} 58. Ke5 {[%clk 0:00:38]}  Kxd8 {[%clk 0:00:04]} 59. Rd6+ {[%clk 0:00:39]}  Ke7 {[%clk 0:00:04]} 60. Rxa6 {[%clk 0:00:40]}  Kf7 {[%clk 0:00:04]} 61. Ra7+ {[%clk 0:00:38]}  Kg6 {[%clk 0:00:04]} 62. Ra8 {[%clk 0:00:38]}  Kg5 {[%clk 0:00:05]} 63. Rg8+ {[%clk 0:00:38]}  Kh4 {[%clk 0:00:05]} 64. Rf8 {[%clk 0:00:39]}  Kg4 {[%clk 0:00:05]} 65. Rf7 {[%clk 0:00:39]}  Kf3 {[%clk 0:00:06]} 66. Rb7 {[%clk 0:00:40]}  Ke3 {[%clk 0:00:06]} 67. Rxb5 {[%clk 0:00:40]}  f4 {[%clk 0:00:06]} 68. Rb7 {[%clk 0:00:41]}  f3 {[%clk 0:00:07]} 69. Rd7 {[%clk 0:00:42]}  f2 {[%clk 0:00:07]} 70. Rf7 {[%clk 0:00:43]}  Rg1 {[%clk 0:00:07]} 71. Rxf2 {[%clk 0:00:43]}  Rxf2 {[%clk 0:00:06]} 72. b5 {[%clk 0:00:44]}  Ra2 {[%clk 0:00:07]} 73. Kd6 {[%clk 0:00:45]}  Rxa3 {[%clk 0:00:08]} 74. Kc5 {[%clk 0:00:46]}  Rb3 {[%clk 0:00:08]} 75. b6 {[%clk 0:00:47]}  Rb5+ {[%clk 0:00:09]} 76. Kxb5 {[%clk 0:00:47]}  Kxd4 {[%clk 0:00:09]} 77. Kc6 {[%clk 0:00:48]}  Ke5 {[%clk 0:00:09]} 78. b7 {[%clk 0:00:49]}  d4+ {[%clk 0:00:10]} 79. Kc7 {[%clk 0:00:50]}  Bxb7 {[%clk 0:00:10]} 80. Kb8 {[%clk 0:00:50]}  Kd5 {[%clk 0:00:11]} 81. Ka7 {[%clk 0:00:51]}  d3 {[%clk 0:00:12]} 82. Kb8 {[%clk 0:00:52]}  d2 {[%clk 0:00:12]} 83. Ka7 {[%clk 0:00:53]}  d1=Q {[%clk 0:00:13]} 84. Kb8 {[%clk 0:00:54]}  Bc6 {[%clk 0:00:13]} 85. Ka7 {[%clk 0:00:55]}  Qa4+ {[%clk 0:00:13]} 86. Kb6 {[%clk 0:00:54]}  Qb5+ {[%clk 0:00:13]} 87. Kc7 {[%clk 0:00:54]}  Qb7+ {[%clk 0:00:13]} 88. Kd8 {[%clk 0:00:55]}  Qd7# {[%clk 0:00:13]} 0-1

[Event "December 12 Early 2023"]
[Site "https://www.chess.com"]
[Date "2023.12.12"]
[Round "8"]
[White "Dragnev, Valentin"]
[Black "Borgaonkar Akshay"]
[Result "0-1"]
[Board "41"]
[TimeControl "180+1"]
[WhiteFideId "1634852"]
[BlackFideId "25639110"]
[WhiteElo "2797"]
[BlackElo "2623"]
[WhiteTeam "AUT"]
[BlackTeam "IND"]
[WhiteClock "0:00:03"]
[BlackClock "0:00:20"]

1. e4 {[%clk 0:03:00]}  e6 {[%clk 0:02:58]} 2. d4 {[%clk 0:02:59]}  d5 {[%clk 0:02:58]} 3. Nd2 {[%clk 0:03:00]}  dxe4 {[%clk 0:02:53]} 4. Nxe4 {[%clk 0:03:01]}  Nf6 {[%clk 0:02:53]} 5. Nxf6+ {[%clk 0:03:01]}  gxf6 {[%clk 0:02:52]} 6. Nf3 {[%clk 0:03:02]}  Nd7 {[%clk 0:02:45]} 7. Be3 {[%clk 0:02:58]}  f5 {[%clk 0:02:46]} 8. Qd2 {[%clk 0:02:58]}  Nf6 {[%clk 0:02:44]} 9. O-O-O {[%clk 0:02:58]}  b6 {[%clk 0:02:34]} 10. Ne5 {[%clk 0:02:57]}  a6 {[%clk 0:02:22]} 11. Qc3 {[%clk 0:02:36]}  Bb7 {[%clk 0:02:19]} 12. Be2 {[%clk 0:01:12]}  Nd5 {[%clk 0:02:16]} 13. Qb3 {[%clk 0:01:08]}  Nxe3 {[%clk 0:02:13]} 14. Qxe3 {[%clk 0:01:02]}  Qh4 {[%clk 0:02:01]} 15. g3 {[%clk 0:01:02]}  Qh6 {[%clk 0:01:56]} 16. f4 {[%clk 0:00:59]}  Bxh1 {[%clk 0:01:47]} 17. Rxh1 {[%clk 0:01:00]}  Bd6 {[%clk 0:01:47]} 18. Bf3 {[%clk 0:00:55]}  Rd8 {[%clk 0:01:47]} 19. Nc6 {[%clk 0:00:46]}  Rd7 {[%clk 0:01:47]} 20. Nb8 {[%clk 0:00:40]}  Rd8 {[%clk 0:01:43]} 21. Nc6 {[%clk 0:00:33]}  Rd7 {[%clk 0:01:27]} 22. Be2 {[%clk 0:00:16]}  O-O {[%clk 0:01:25]} 23. Kb1 {[%clk 0:00:14]}  b5 {[%clk 0:01:22]} 24. c3 {[%clk 0:00:12]}  Be7 {[%clk 0:01:09]} 25. Bf3 {[%clk 0:00:07]}  Bf6 {[%clk 0:01:09]} 26. Qe2 {[%clk 0:00:06]}  Rd6 {[%clk 0:01:06]} 27. Rd1 {[%clk 0:00:05]}  Qg7 {[%clk 0:01:03]} 28. a4 {[%clk 0:00:04]}  bxa4 {[%clk 0:00:54]} 29. Qxa6 {[%clk 0:00:05]}  Rb8 {[%clk 0:00:49]} 30. Qxa4 {[%clk 0:00:03]}  Rb6 {[%clk 0:00:44]} 31. Qa7 {[%clk 0:00:03]}  Rd7 {[%clk 0:00:33]} 32. Nb8 {[%clk 0:00:01]}  Rd8 {[%clk 0:00:24]} 33. Nc6 {[%clk 0:00:02]}  Rc8 {[%clk 0:00:21]} 34. Qa5 {[%clk 0:00:01]}  Qf8 {[%clk 0:00:20]} 35. Ne5 {[%clk 0:00:01]}  Bxe5 {[%clk 0:00:20]} 36. Qxe5 {[%clk 0:00:02]}  Qa3 {[%clk 0:00:19]} 37. Rd2 {[%clk 0:00:02]}  Rcb8 {[%clk 0:00:19]} 38. Qe2 {[%clk 0:00:02]}  Ra6 {[%clk 0:00:19]} 39. Kc1 {[%clk 0:00:02]}  Qa1+ {[%clk 0:00:19]} 40. Kc2 {[%clk 0:00:02]}  Rxb2+ {[%clk 0:00:20]} 41. Kd3 {[%clk 0:00:02]}  Rxd2+ {[%clk 0:00:20]} 42. Qxd2 {[%clk 0:00:03]}  Ra2 {[%clk 0:00:18]} 43. Qe3 {[%clk 0:00:03]}  Qb1+ {[%clk 0:00:19]} 44. Kc4 {[%clk 0:00:03]}  Ra4+ {[%clk 0:00:19]} 45. Kc5 {[%clk 0:00:03]}  Qb6# {[%clk 0:00:20]} 0-1

[Event "December 12 Early 2023"]
[Site "https://www.chess.com"]
[Date "2023.12.12"]
[Round "8"]
[White "Antunez Soler, Luis"]
[Black "Dragun, Kamil"]
[Result "0-1"]
[Board "42"]
[TimeControl "180+1"]
[WhiteFideId "3513335"]
[BlackFideId "1134167"]
[WhiteElo "2631"]
[BlackElo "2796"]
[WhiteTeam "CUB"]
[BlackTeam "POL"]
[WhiteClock "0:00:12"]
[BlackClock "0:00:22"]

1. e4 {[%clk 0:03:00]}  e5 {[%clk 0:02:55]} 2. Nf3 {[%clk 0:03:00]}  Nc6 {[%clk 0:02:56]} 3. Bc4 {[%clk 0:03:01]}  Nf6 {[%clk 0:02:55]} 4. d3 {[%clk 0:03:01]}  Bc5 {[%clk 0:02:55]} 5. c3 {[%clk 0:03:01]}  d6 {[%clk 0:02:56]} 6. Bb3 {[%clk 0:03:02]}  a6 {[%clk 0:02:56]} 7. Qe2 {[%clk 0:03:02]}  Ba7 {[%clk 0:02:55]} 8. Nbd2 {[%clk 0:03:03]}  O-O {[%clk 0:02:45]} 9. Nf1 {[%clk 0:03:03]}  d5 {[%clk 0:02:41]} 10. Ng3 {[%clk 0:03:03]}  h6 {[%clk 0:02:38]} 11. h3 {[%clk 0:03:03]}  Re8 {[%clk 0:02:37]} 12. Nh2 {[%clk 0:03:02]}  Be6 {[%clk 0:02:24]} 13. Ng4 {[%clk 0:03:02]}  d4 {[%clk 0:02:18]} 14. Qf3 {[%clk 0:02:58]}  Nd7 {[%clk 0:02:14]} 15. Bxh6 {[%clk 0:02:52]}  dxc3 {[%clk 0:02:06]} 16. bxc3 {[%clk 0:02:43]}  Nc5 {[%clk 0:02:07]} 17. Bc2 {[%clk 0:02:31]}  gxh6 {[%clk 0:01:58]} 18. Nf6+ {[%clk 0:02:30]}  Kf8 {[%clk 0:01:56]} 19. Nxe8 {[%clk 0:02:31]}  Kxe8 {[%clk 0:01:53]} 20. O-O {[%clk 0:02:27]}  Qg5 {[%clk 0:01:51]} 21. Kh2 {[%clk 0:02:25]}  Ke7 {[%clk 0:01:48]} 22. Rae1 {[%clk 0:02:15]}  Rg8 {[%clk 0:01:41]} 23. Nf5+ {[%clk 0:02:11]}  Bxf5 {[%clk 0:01:40]} 24. exf5 {[%clk 0:02:11]}  Kd8 {[%clk 0:01:05]} 25. g3 {[%clk 0:02:11]}  Kc8 {[%clk 0:01:02]} 26. h4 {[%clk 0:02:08]}  Qd2 {[%clk 0:01:02]} 27. Bb3 {[%clk 0:01:53]}  Qxc3 {[%clk 0:00:49]} 28. Bxf7 {[%clk 0:01:47]}  Rf8 {[%clk 0:00:49]} 29. Rc1 {[%clk 0:01:28]}  Qxd3 {[%clk 0:00:47]} 30. Be6+ {[%clk 0:01:24]}  Kb8 {[%clk 0:00:47]} 31. Qg4 {[%clk 0:01:12]}  Nd4 {[%clk 0:00:44]} 32. Qg7 {[%clk 0:01:11]}  Rd8 {[%clk 0:00:43]} 33. Qe7 {[%clk 0:01:08]}  Nc6 {[%clk 0:00:26]} 34. Qf6 {[%clk 0:01:02]}  Qd6 {[%clk 0:00:27]} 35. Rfd1 {[%clk 0:01:00]}  Nd4 {[%clk 0:00:27]} 36. Qxh6 {[%clk 0:00:52]}  Rf8 {[%clk 0:00:24]} 37. Qg7 {[%clk 0:00:28]}  Ncxe6 {[%clk 0:00:20]} 38. fxe6 {[%clk 0:00:29]}  Rxf2+ {[%clk 0:00:20]} 39. Kh3 {[%clk 0:00:19]}  Qxe6+ {[%clk 0:00:21]} 40. g4 {[%clk 0:00:19]}  Rf3+ {[%clk 0:00:21]} 41. Kg2 {[%clk 0:00:19]}  Qxa2+ {[%clk 0:00:21]} 42. Kh1 {[%clk 0:00:13]}  Rh3+ {[%clk 0:00:21]} 43. Kg1 {[%clk 0:00:14]}  Nf3+ {[%clk 0:00:21]} 44. Kf1 {[%clk 0:00:12]}  Qf2# {[%clk 0:00:22]} 0-1